[Event "European Amateur Chess-ch 2022"]
[Site "Zagreb"]
[Date "2022.08.20"]
[Round "8.20"]
[White "Takac, Zvonko"]
[Black "Baric, Marko"]
[Result "0-1"]
[ECO "E24"]
[WhiteElo "2040"]
[BlackElo "1948"]
[Annotator "NA RC"]
[PlyCount "74"]
[EventDate "2022.08.14"]
[EventCountry "CRO"]
[SourceTitle "playchess.com"]
[Source "ChessBase"]
[SourceQuality "1"]
[TimeControl "40/5400+30:1800+30"]

1. d4 Nf6 2. c4 e6 3. Nf3 Bb4+ 4. Nc3 c5 5. a3 Bxc3+ 6. bxc3 Nc6 7. Qc2 d6 8. e3 O-O 9. Bd3 b6 10. O-O Qc7 11. Ng5 h6 12. Nh7 Nxh7 13. Bxh7+ Kh8 14. Bd3 Na5 15. e4 Ba6 16. dxc5 Qxc5 17. Be3 Qh5 18. Be2 Qg6 19. f4 e5 20. fxe5 dxe5 21. Rf5 Bxc4 22. Rxe5 Bxe2 23. Qxe2 Rae8 24. Qb5 Qc6 25. Qb4 Kg8 26. Rd5 Nc4 27. Bd4 Rxe4 28. Rf5 Ne3 29. Rf3 Nc2 30. Qb2 Nxa1 31. Qxa1 Rfe8 32. Qa2 Re1+ 33. Kf2 Qe6 34. Qxe6 R8xe6 35. Rg3 R1e2+ 36. Kf3 f6 37. Kf4 Kf7 0-1

[Event "European Amateur Chess-ch 2022"]
[Site "Zagreb"]
[Date "2022.08.20"]
[Round "8.21"]
[White "Pal, Rohan"]
[Black "Korov, Zvonko"]
[Result "1/2-1/2"]
[ECO "B40"]
[WhiteElo "1935"]
[BlackElo "2015"]
[Annotator "NA RC"]
[PlyCount "80"]
[EventDate "2022.08.14"]
[EventCountry "CRO"]
[SourceTitle "playchess.com"]
[Source "ChessBase"]
[SourceQuality "1"]
[TimeControl "40/5400+30:1800+30"]

1. e4 c5 2. Nf3 e6 3. d3 Nf6 4. g3 b6 5. Bg2 Bb7 6. O-O Qc7 7. Qe2 d6 8. c3 Be7 9. h3 Nbd7 10. Nbd2 O-O 11. Rd1 Rac8 12. b3 Ne8 13. Bb2 Bf6 14. d4 g6 15. c4 Ng7 16. e5 dxe5 17. dxe5 Be7 18. Ne4 Bxe4 19. Qxe4 Rfd8 20. Bc1 Nf8 21. Bg5 Bxg5 22. Nxg5 Nf5 23. h4 h5 24. Qf4 Rxd1+ 25. Rxd1 Rd8 26. Rxd8 Qxd8 27. Qf3 Qc7 28. Qa8 Kg7 29. Kh2 Nh6 30. Bh3 a5 31. f4 Qd7 32. Qf3 Qd4 33. Ne4 Nd7 34. Nd6 Ng4+ 35. Bxg4 hxg4 36. Qxg4 Nxe5 37. Qe2 Nd3 38. Nb5 Qd7 39. Nc3 Qd4 40. Nb5 Qd8 1/2-1/2

[Event "European Amateur Chess-ch 2022"]
[Site "Zagreb"]
[Date "2022.08.21"]
[Round "9.1"]
[White "Vujec, Ivan"]
[Black "Novosel, Lovro"]
[Result "0-1"]
[ECO "A57"]
[WhiteElo "2192"]
[BlackElo "2212"]
[Annotator "TA"]
[PlyCount "90"]
[EventDate "2022.08.14"]
[EventCountry "CRO"]
[SourceTitle "playchess.com"]
[Source "ChessBase"]
[SourceQuality "1"]
[TimeControl "40/5400+30:1800+30"]

{[%evp 9,90,29,81,29,57,27,63,2,103,4,80,77,90,77,86,-10,-7,-7,-20,-25,77,77,113,65,75,61,57,40,55,62,47,64,70,64,52,65,70,-16,0,-34,-28,-90,-53,-45,-21,-23,-23,-179,-171,-181,-171,-216,-186,-222,-203,-206,-221,-227,-175,-225,-217,-212,-210,-206,-211,-847,-848,-845,-837,-842,-841,-840,-839,-831,-825,-825,-824,-808,-798,-772,-758,-726,-726]} 1. d4 Nf6 2. c4 c5 3. d5 b5 4. Qc2 d6 5. e4 g6 (5... b4 $11) 6. Nf3 {A57: Benko/Volga Gambit.} (6. cxb5 $16 Bg7 7. Nc3) 6... Bg7 7. Be2 O-O 8. O-O (8. cxb5 $14 a6 9. Nc3) 8... Na6 {[#]} (8... b4 $11) 9. a3 $146 (9. cxb5 $16 Nc7 10. Nc3) ({Predecessor:} 9. cxb5 Nb4 10. Qd1 a6 11. b6 a5 12. a3 Na6 13. Nc3 Qxb6 14. e5 Nd7 15. e6 fxe6 {1-0 (35) Roubalik,J (2336)-Hajek,O (1810) Brno 2013}) 9... Rb8 (9... b4 $11) 10. cxb5 $16 Nc7 11. a4 a6 12. b6 ({Better is} 12. bxa6 $16 Nxa6 13. Nc3) 12... Rxb6 $11 13. Nbd2 Rb8 14. Nc4 Na8 (14... e6 $11 {keeps the balance.}) 15. Bd2 $36 {[%mdl 2048] Keeping Black busy.} Nd7 16. Bc3 (16. Rab1 $16) 16... Qc7 17. Ra3 Bxc3 18. Rxc3 Rb4 19. Nfd2 Nab6 20. b3 Nxc4 21. Nxc4 Nf6 22. f4 a5 23. Bf3 (23. Rg3 $14) 23... Ba6 24. Re1 Bxc4 25. Rxc4 (25. bxc4 $11 Nd7 26. g3) 25... Qb6 26. e5 Nd7 (26... Ne8 $5 {[%cal Rb4b3]}) 27. Bg4 f5 28. Bf3 {This move loses the game for White.} (28. Bd1 $11) 28... Rxb3 $19 29. exd6 exd6 30. h4 Rb2 31. Qc1 Rb8 32. Qe3 {[#] Black must now prevent Qe6+.} Nf8 {Prevents Qe6+.} 33. h5 Rb1 34. Rxb1 (34. Rcc1 {is a better defense.} Rb4 35. Ra1) 34... Qxb1+ 35. Rc1 Qb2 36. Rd1 c4 37. g4 $2 (37. h6) 37... c3 {Black is clearly winning.} 38. Rc1 c2 {[%cal Ob2c1] Threatens to win with ...Qxc1+!} 39. Kg2 Rb3 40. Qe1 Qa3 41. Be2 {[#]} Rg3+ $3 {[%mdl 512]} 42. Qxg3 Qxc1 43. Qc3 {Inhibits Qd2.} Qd1 44. Bxd1 cxd1=Q 45. gxf5 Qg4+ {Weighted Error Value: White=0.47/Black=0.23 (precise)} 0-1

[Event "European Amateur Chess-ch 2022"]
[Site "Zagreb"]
[Date "2022.08.21"]
[Round "9.2"]
[White "Krikunov, Dmitry"]
[Black "Karlusic, Luka"]
[Result "1-0"]
[ECO "B40"]
[WhiteElo "2202"]
[BlackElo "2089"]
[Annotator "TA"]
[PlyCount "45"]
[EventDate "2022.08.14"]
[EventCountry "CRO"]
[SourceTitle "playchess.com"]
[Source "ChessBase"]
[SourceQuality "1"]
[TimeControl "40/5400+30:1800+30"]

{[%evp 9,45,58,42,28,195,181,185,187,243,247,760,769,789,570,542,406,470,460,463,450,458,467,452,464,464,450,455,456,533,528,501,501,828,830,824,795,828,830]} 1. e4 c5 2. Nf3 e6 3. g3 b6 4. Bg2 Bb7 5. d4 Bxe4 6. Nc3 {[#] B40: Sicilian: 2...e6, Unusual lines.} Bc6 $146 {[#]} (6... Bxf3 $11 {and Black has nothing to worry.} 7. Qxf3 (7. Bxf3 d5 $11) 7... Nc6) ({Predecessor:} 6... Bb7 7. d5 Qc8 8. O-O Nf6 9. Bg5 Na6 10. Bxf6 gxf6 11. Nh4 Nc7 12. Qh5 c4 {1-0 (21) Petrov,N (2590)-Jobava,B (2619) Mersin 2019}) 7. d5 $18 exd5 8. Nxd5 {Strongly threatening 0-0. White is clearly better.} Ne7 (8... Be7 {was called for.}) 9. Ne5 {[%cal Od1h5] Threatens to win with Qh5!} Na6 $2 {[#]} (9... Nxd5 10. Bxd5 Qf6 11. Nxf7 Be7) 10. Qh5 $1 {[%csl Ge5][%cal Rh5f7]} Ng6 11. Nxg6 fxg6 12. Qe2+ Kf7 13. Qxa6 {White is clearly winning.} Bd6 14. O-O Re8 15. Qc4 b5 16. Qg4 Kg8 17. Bf4 Bxf4 18. Qxf4 ({Resist} 18. Nxf4 Qf6 19. Rae1 Qf5 20. Qxf5 gxf5 21. Bxc6 dxc6 $18) 18... Re2 19. Ne3 Bxg2 20. Kxg2 Qf6 (20... Qc8 $142 21. Kg1 Qf8) 21. Qxf6 gxf6 22. Rad1 Re8 23. Kf3 {Black did not feel at home in the position after the opening.  Weighted Error Value: White=0.31/Black=0.39} 1-0

[Event "European Amateur Chess-ch 2022"]
[Site "Zagreb"]
[Date "2022.08.21"]
[Round "9.3"]
[White "Peric, Bernard"]
[Black "Bouget, Alexandre"]
[Result "1/2-1/2"]
[ECO "C47"]
[WhiteElo "2112"]
[BlackElo "2282"]
[Annotator "TA"]
[PlyCount "47"]
[EventDate "2022.08.14"]
[EventCountry "CRO"]
[SourceTitle "playchess.com"]
[Source "ChessBase"]
[SourceQuality "1"]
[TimeControl "40/5400+30:1800+30"]

{[%evp 14,47,0,0,0,0,13,0,0,0,7,5,10,2,53,46,54,43,58,55,58,30,25,40,31,41,33,17,47,47,81,71,70,51,166,160]} 1. e4 e5 2. Nf3 Nc6 3. Nc3 Nf6 4. d4 exd4 5. Nxd4 Bb4 6. Nxc6 bxc6 7. Bd3 d5 8. exd5 O-O {now supersedes 8...cxd5. C47: Scotch Four Knights and Four Knights with 4 g3.} ({Don't take} 8... Nxd5 9. O-O $14) 9. O-O Bg4 10. Be2 (10. f3 {with more complications.} Bh5 11. Bg5 Qd6 12. Qe1) 10... Bxe2 {The position is equal.} 11. Nxe2 cxd5 12. Bg5 Bd6 {[%cal Od6h2] [#]} 13. Qd4 $146 ({Predecessor:} 13. Nd4 c5 14. Nf5 Be5 15. c3 Qc7 16. Bxf6 Bxf6 17. Qxd5 Rab8 18. Rab1 Rfd8 19. Qf3 {0-1 (35) Von Buelow,G (2361)-Djabri,M (2206) Chess.com INT 2022}) 13... Rb8 (13... Be7 $11) 14. Bxf6 $14 Qxf6 15. Qxf6 gxf6 16. b3 Rfe8 17. Nd4 Bc5 18. Rad1 Re4 19. Nf3 c6 20. Rfe1 {Against Re2} Rbe8 21. Kf1 {Prevents Re2.} Kg7 22. Rxe4 Rxe4 23. Re1 (23. Rd3 $5 {[%cal Rd3c3]}) 23... Rf4 {[#]} (23... Kg6 $14) 24. Re8 $1 {Weighted Error Value: White=0.06 (flawless) /Black=0.22 (precise)} 1/2-1/2

[Event "European Amateur Chess-ch 2022"]
[Site "Zagreb"]
[Date "2022.08.21"]
[Round "9.4"]
[White "Begic, Domagoj"]
[Black "Babic, Zvonko"]
[Result "0-1"]
[ECO "C01"]
[WhiteElo "2026"]
[BlackElo "2180"]
[Annotator "TA"]
[PlyCount "96"]
[EventDate "2022.08.14"]
[EventCountry "CRO"]
[SourceTitle "playchess.com"]
[Source "ChessBase"]
[SourceQuality "1"]
[TimeControl "40/5400+30:1800+30"]

{[%evp 12,96,35,28,33,6,5,5,11,-16,-12,-17,-8,-32,-29,-35,-30,-39,-29,-37,-15,-69,8,6,13,2,0,6,70,0,20,12,0,14,97,69,112,126,128,59,50,0,0,-29,0,-50,-31,-73,-41,-105,0,0,0,-18,12,-123,15,-135,-160,-236,-237,-256,-250,-242,-239,-243,-230,-273,-264,-251,-268,-237,-202,-341,-331,-500,-495,-1000,-312,-297,0,-964,-935,-1592,-1704,-1330,-718]} 1. e4 e6 2. d4 d5 3. exd5 exd5 4. Bd3 Nc6 5. c3 Bd6 6. Nf3 Bg4 {[%cal Bc8g4,Bg4h5,Bh5g6][%mdl 32]} 7. h3 Bh5 {C01: French: Exchange Variation.} 8. Be3 Nge7 9. Nbd2 Qd7 {The position is equal.} 10. Qc2 Bg6 11. O-O-O {[#]} a5 $146 ({Predecessor:} 11... Nf5 12. Rde1 O-O-O 13. Re2 Rde8 14. Rhe1 Re7 15. Kd1 Rhe8 16. Nf1 Nd8 17. Bg5 Rxe2 18. Rxe2 Rxe2 19. Kxe2 {0-1 (40) Ivarsson,T (2185)-Aaberg,A (2365) Tylosand 2016}) 12. g4 a4 13. Nh4 Bxd3 14. Qxd3 b5 15. f4 Na5 16. Nhf3 (16. a3 $11) 16... b4 ({Better is} 16... Nc4 $15) 17. Ne5 $11 Bxe5 18. dxe5 Qc6 19. Kb1 Rb8 (19... bxc3 $11 20. Rc1 (20. Qxc3 Qxc3 21. bxc3 h5 $11) 20... O-O) 20. Rc1 (20. Ba7 $14 Rb7 21. cxb4 (21. Bd4 bxc3 22. Bxc3 Qb5 $14) 21... Rxa7 22. bxa5) 20... bxc3 $1 21. Qxc3 Qxc3 22. Rxc3 Kd7 (22... h5 $11 {remains equal.}) 23. Rhc1 c6 24. Bc5 Ng6 25. Rf1 (25. Ra3 $16) 25... Rb5 $14 26. Kc2 (26. Ba3 $14) 26... h5 $11 27. g5 Rhb8 (27... Nb7 $5 {[%cal Rb7c5]} 28. Ba3 c5 $11) 28. b3 ({White should try} 28. Bd6 $11 Rxb2+ 29. Kc1) 28... axb3+ 29. axb3 {[#]} Nb7 $1 {Prevents Bd6.} 30. Bg1 (30. Ba3 $15) 30... Rb4 (30... Ra8 $17 31. Rd3 Nc5 32. Bxc5 Rxc5+ 33. Kb2 Rb5) 31. Bh2 Ra8 32. Kb2 Rd4 33. Rf2 (33. Nf3 $11 {keeps the balance.} Re4 34. f5 Re2+ 35. Rc2 Rxc2+ 36. Kxc2) 33... Re8 (33... Ne7 $17 {Threatens to win with ...Nd8.} 34. Nb1 Nf5) 34. Re3 ({White should play} 34. Nf3 $11 Re4 35. f5 Nxe5 36. Nxe5+ (36. Bxe5 R8xe5 37. Nxe5+ Rxe5 $11) 36... R8xe5 37. Bxe5 Rxe5 38. h4) 34... Nd6 $17 35. Kc3 {[#]} (35. Rc3 $17 Nb5 36. Re3) 35... Nf5 $1 $19 36. Ree2 Rb8 37. Re1 Nf8 38. Ra1 Rdb4 39. Ra7+ R8b7 40. Rxb7+ Rxb7 41. Rf1 Ra7 {Against Ra1} 42. Nf3 (42. Kb2 {only move.}) 42... Ra2 {White must now prevent ...Ne6.} 43. Nd2 (43. b4 $142) 43... Ne6 {Hoping for ...d4+.} 44. Rf2 (44. Rf3 $142) 44... Ra1 $2 (44... Nc5 {...d4+ is the strong threat.} 45. Rg2 d4+ 46. Kc4 Ne3+ 47. Kxc5 Nxg2) 45. Rf1 Ra2 (45... Rxf1 46. Nxf1 Nfd4) 46. Rf2 $1 Nc5 {Inhibits Ne4. aiming for ...d4+. Pair of Knights! Black is clearly winning.} 47. Bg1 d4+ 48. Kc4 Rc2+ {Weighted Error Value: White=0.51/Black=0.39} 0-1

[Event "European Amateur Chess-ch 2022"]
[Site "Zagreb"]
[Date "2022.08.21"]
[Round "9.5"]
[White "Starcevic, Ante Leon"]
[Black "Ruzic, Pia Marie"]
[Result "1/2-1/2"]
[ECO "E68"]
[WhiteElo "2152"]
[BlackElo "1996"]
[Annotator "TA"]
[PlyCount "124"]
[EventDate "2022.08.14"]
[EventCountry "CRO"]
[SourceTitle "playchess.com"]
[Source "ChessBase"]
[SourceQuality "1"]
[TimeControl "40/5400+30:1800+30"]

{[%evp 18,124,19,29,53,56,59,12,3,11,10,0,45,58,53,52,48,24,101,74,79,75,77,84,81,66,79,65,67,64,156,66,69,69,71,72,79,71,72,15,62,21,11,12,17,13,14,2,20,0,0,-3,0,0,2,2,2,4,4,0,0,0,0,0,0,0,0,0,0,0,0,0,0,0,0,0,0,0,0,0,0,0,0,0,0,0,0,0,0,0,0,0,0,0,0,0,0,0,0,0,0,0,0,0,0,0,0,0,0]} 1. Nf3 Nf6 2. g3 g6 3. Bg2 Bg7 4. c4 d6 5. Nc3 e5 6. d4 exd4 7. Nxd4 O-O 8. O-O Nbd7 {[%cal Bb8d7,Bd7c5,Bc5e6,Be6d4][%mdl 32]} 9. h3 {[%cal Bh2h3,Bh3g4,Bg4g5][%mdl 32]} Nc5 10. e4 Ne6 {E68: King's Indian: Fianchetto: 6...Nbd7 7 0-0 e5 8 e4.} 11. Be3 a6 {[#]} 12. Qc2 $146 (12. f4 $14 {was preferrable.}) ({Predecessor:} 12. Qd2 Nxd4 13. Bxd4 Be6 14. b3 Qd7 15. Kh2 h5 16. Nd5 Nh7 17. Bxg7 Kxg7 18. Qd4+ {1-0 (32) Lund,T (2101)-Eriksen,M Kristiansund 2017}) 12... Ng4 $1 $11 13. hxg4 ({Much weaker is} 13. Nxe6 Nxe3 14. fxe3 Bxe6 $17) 13... Nxd4 14. Qd2 Nc6 15. g5 Be6 16. b3 f6 17. Nd5 (17. gxf6 {keeps more tension.} Qxf6 18. Nd5 Qf7 19. Rad1) 17... Bxd5 (17... fxg5 $11 {remains equal.} 18. Bxg5 Qd7) 18. Qxd5+ Kh8 19. Rad1 {White is much more active.} fxg5 20. Bxg5 Qc8 21. c5 dxc5 22. Qxc5 Qg4 23. Qe3 Qh5 {[#]} (23... Rae8 $14) 24. Bf4 {This bishop pair is nice.} (24. Rd5 $1 $16) 24... Ne5 $14 25. Bxe5 Qxe5 26. f4 Qe7 {[%cal Og6g5]} ({Not} 26... Qc3 27. Qxc3 Bxc3 28. e5 $16) 27. e5 c6 {[%cal Og6g5]} 28. Rd6 (28. Be4 $16) 28... Rfd8 (28... g5 $11 {is superior.}) 29. Rfd1 {next Qd3 is good for White.} Rxd6 {The position is equal.} 30. Rxd6 {With the idea Qd2.} g5 31. Bh3 gxf4 32. gxf4 Rg8 {[#] Strongly threatening ...Bxe5+.} 33. Kh2 Qh4 {Against Qe1. Hoping for ...Bh6.} 34. f5 Bf8 35. Rd4 Qh5 36. Rd8 {aiming for e6.} Bh6 37. Rxg8+ Kxg8 $11 {[%mdl 4096] Endgame KQB-KQB} 38. Qg3+ Kf8 39. f6 Qe2+ 40. Bg2 Qh5+ 41. Bh3 Qe2+ 42. Bg2 Qh5+ 43. Kg1 Qg5 44. Qxg5 Bxg5 {KB-KB} 45. Kf2 {Against Be3+. Threatens to win with Kf3.} Bf4 $1 46. e6 Be5 47. f7 Bd6 48. Be4 Ke7 49. Bf5 Kf6 50. Bh3 Be7 51. Kf3 Bd6 52. Ke4 Be7 53. Kd4 Bd6 54. Kc3 a5 55. Kd4 Be7 56. Ke4 Bd6 57. Bf5 Be7 58. Bxh7 Kxe6 59. Bg8 Bf8 60. Kd4 Kf6 61. Kc4 Be7 62. a4 Bf8 {Weighted Error Value: White=0.08 (flawless) /Black=0.07 (flawless)} 1/2-1/2

[Event "European Amateur Chess-ch 2022"]
[Site "Zagreb"]
[Date "2022.08.21"]
[Round "9.6"]
[White "Roska, Branislav"]
[Black "Okrosa, Marijan"]
[Result "0-1"]
[ECO "C01"]
[WhiteElo "2153"]
[BlackElo "2059"]
[Annotator "TA"]
[PlyCount "62"]
[EventDate "2022.08.14"]
[EventCountry "CRO"]
[SourceTitle "playchess.com"]
[Source "ChessBase"]
[SourceQuality "1"]
[TimeControl "40/5400+30:1800+30"]

{[%evp 11,62,0,9,-8,13,18,13,16,17,15,22,14,42,19,26,0,17,0,31,39,68,-13,36,10,93,-17,-10,-40,-27,-118,-33,-44,-52,-110,-35,-133,69,67,436,433,405,358,29997,-29988,-29989,-29989,-29986,-29990,-29987,-29991,-29992,-29992,-29992]} 1. e4 e6 2. d4 d5 3. exd5 exd5 4. Bd3 Nc6 5. c3 Bd6 6. h3 Nge7 7. Qc2 {C01: French: Exchange Variation.} Be6 8. Ne2 Qd7 9. Bf4 {The position is equal.} O-O-O 10. Bxd6 Qxd6 11. Nd2 {[%cal Bb1d2,Bd2b3,Bb3c5][%mdl 32]} g6 {[#]} 12. Nb3 $146 ({Predecessor:} 12. O-O-O Bf5 13. Nb3 b6 14. g4 Bxd3 15. Qxd3 Kb7 16. f4 h5 17. Nd2 Qd7 18. Qf3 {0-1 (40) Khadzh Khamed,N (2000)-Iakymov,V (2434) Alushta 2008}) 12... Bf5 13. Nc5 Rde8 (13... b6 $5 {[%cal Rb6c5]} 14. Ba6+ Kb8 $11) 14. O-O h5 (14... b6 $5 {[%cal Rb6c5]} 15. Ba6+ Kb8 $11) 15. b4 h4 16. Rab1 ({Better is} 16. a4 $14) 16... Bxd3 (16... b6 $11 {was preferrable.}) 17. Qxd3 $14 g5 (17... Nd8 $11) 18. Rb3 (18. Qb5 $6 Nd8 $11) (18. f4 $16) 18... Rhg8 $11 19. Ra3 {Threatens to win with Qb5.} Kb8 $1 (19... b6 $2 20. Qa6+ Kd8 21. Nb7+ Kd7 22. Nxd6 $18) 20. f3 (20. Qb5 $11 Nd8 21. Qd7) 20... f5 (20... Nc8 $17 {And now ...Nb6 would win.} 21. Rf2 (21. Qb5 Nb6 $17) (21. Nxb7 $2 Kxb7 22. Nc1 Ka8 $19) 21... Nb6) 21. Qb5 {[%csl Gc5][%cal Rb5b7]} Nd8 (21... b6 $2 22. Qa6 $1 Qxc5 23. dxc5 $18) 22. Nc1 (22. Nd7+ $15 Kc8 23. Ne5 (23. Rxa7 $2 Nec6 $19)) 22... Nc8 (22... g4 $17 {White must now prevent ...gxh3.} 23. hxg4 fxg4 24. fxg4 Nec6) 23. N1d3 ({White should try} 23. Nd7+ $15 Ka8 24. Ne5) 23... g4 $2 ({Black should play} 23... c6 $17 24. Qa4 Re7) 24. Nxb7 $1 $40 {[%mdl 128] White is up to no good.} Nxb7 {[%mdl 8192]} (24... Qc6 $1 $14 25. Qxc6 Nxc6) 25. Nc5 $18 {[%csl Gc5][%cal Rb5b7]} Nb6 {[#]} 26. Rxa7 $1 gxh3 $2 {[#]} (26... Nxc5 $18 27. bxc5 gxf3 28. cxd6 Rxg2+ 29. Kh1 Ree2 30. dxc7+ (30. Rxc7 $2 {is a self mate.} Rh2+ 31. Kg1 Reg2#) 30... Kxa7 31. c8=N+ (31. Rxf3 Rh2+ 32. Kg1 Reg2+ 33. Kf1 Rxa2 $11) 31... Nxc8 32. Qd7+ (32. Qxd5 $2 {gets mated.} Rh2+ 33. Kg1 Reg2#) 32... Kb8 33. Rb1+ Rb2 34. Rxb2+ Rxb2 35. Qxf5 f2 36. Qe5+ Ka7) 27. Rxb7+ $4 {[%mdl 8192]} (27. Ra8+ $1 {[%mdl 512] was the only winning move.} Kxa8 28. Qa6+ Kb8 29. Qxb7#) 27... Kc8 {[%cal Bb8c8,Bc8c7,Bc7c8][%mdl 32] Black mates.} 28. f4 Rxg2+ 29. Kh1 Ree2 30. Rxc7+ Kxc7 31. Na6+ Kc8 {Weighted Error Value: White=0.45/Black=0.74} 0-1

[Event "European Amateur Chess-ch 2022"]
[Site "Zagreb"]
[Date "2022.08.21"]
[Round "9.7"]
[White "Gal, Andrej"]
[Black "Janiszewski, Maciej"]
[Result "1-0"]
[ECO "A57"]
[WhiteElo "1878"]
[BlackElo "2075"]
[Annotator "NA RC"]
[PlyCount "105"]
[EventDate "2022.08.14"]
[EventCountry "CRO"]
[SourceTitle "playchess.com"]
[Source "ChessBase"]
[SourceQuality "1"]
[TimeControl "40/5400+30:1800+30"]

1. d4 Nf6 2. c4 c5 3. d5 b5 4. cxb5 a6 5. b6 e6 6. Nc3 Nxd5 7. Nxd5 exd5 8. Qxd5 Nc6 9. Nf3 Be7 10. Ne5 O-O 11. Nxc6 dxc6 12. Qxd8 Rxd8 {[#]} (12... Bxd8 $14 13. e4 Bxb6) 13. e3 (13. Bf4 $1 $16) 13... Rb8 (13... Be6 $11) 14. Bd2 Rxb6 15. b3 Rb8 16. Bc4 Be6 17. Rc1 Bxc4 18. Rxc4 Rd5 19. Ke2 Rbd8 20. Ba5 R8d6 21. Rhc1 Rd7 22. Be1 f5 23. Ra4 Ra7 24. Rcc4 Kf7 25. Ra5 Rd8 26. Bc3 g6 27. Rca4 Rda8 28. Bb2 Rb7 29. Ba3 Rb6 30. Bxc5 Bxc5 31. Rxc5 Ke6 32. Rd4 a5 33. f4 Ra7 34. Kd3 Kf6 35. Rd6+ Kg7 36. Rdxc6 Rd7+ 37. Kc2 Rb4 38. Rc7 Rxc7 39. Rxc7+ Kh6 40. h3 a4 41. g4 fxg4 42. hxg4 axb3+ 43. axb3 g5 44. Rc4 Rb5 45. b4 gxf4 46. exf4 Rb6 47. Kc3 Kg6 48. Re4 h5 $18 49. gxh5+ Kxh5 50. Kc4 Kg4 51. Kc5 Rb8 52. b5 Kf5 53. Rd4 1-0

[Event "European Amateur Chess-ch 2022"]
[Site "Zagreb"]
[Date "2022.08.21"]
[Round "9.8"]
[White "Vucenovic, Damian"]
[Black "Franc, Borna"]
[Result "1/2-1/2"]
[ECO "B01"]
[WhiteElo "2053"]
[BlackElo "2020"]
[Annotator "NA RC"]
[PlyCount "148"]
[EventDate "2022.08.14"]
[EventCountry "CRO"]
[SourceTitle "playchess.com"]
[Source "ChessBase"]
[SourceQuality "1"]
[TimeControl "40/5400+30:1800+30"]

1. e4 d5 2. exd5 Nf6 3. d4 Bg4 4. f3 Bc8 5. Bd3 Qxd5 6. Ne2 e6 7. O-O c6 8. Bf4 Qd8 9. c4 Bd6 10. Bxd6 Qxd6 11. Nbc3 O-O 12. Qc2 e5 13. d5 Na6 14. Ng3 Nb4 15. Qd2 cxd5 16. Bf5 Qc5+ 17. Kh1 Qxc4 18. Bxc8 Qxc8 19. a3 Nc6 20. Nxd5 Nxd5 21. Qxd5 Qd8 22. Qb3 Qb6 23. Qc3 Rae8 24. Rad1 Nd4 25. Rfe1 Re6 26. b4 Rfe8 27. Qc4 Qa6 28. Qxa6 bxa6 29. Rc1 f6 30. Kg1 R6e7 31. Ne4 Rd8 32. Kf2 Rb7 33. Nc5 Rb6 34. Na4 Rbd6 35. Nc5 Rc8 36. Ne4 Rdc6 37. Rc5 Rxc5 38. Nxc5 a5 39. Rc1 axb4 40. axb4 Ne6 41. Ra1 Nxc5 42. bxc5 Rxc5 43. Rxa7 Rc2+ 44. Kg3 h5 45. h4 Kh7 46. Re7 Kh6 47. Re6 Kg6 48. Re7 Re2 49. Ra7 f5 (49... Re1 $17) 50. Ra6+ Kh7 51. Re6 Kg8 52. Re7 Kh7 53. Rf7 Kg6 54. Re7 Kf6 55. Ra7 f4+ 56. Kh3 $11 Re3 57. Kh2 Re2 (57... Rb3 $15) 58. Ra8 Kf7 59. Ra7+ Kg6 60. Kh3 Re1 61. Kh2 e4 ({Black should play} 61... Rf1 $15) 62. fxe4 Rxe4 63. Ra5 Re2 64. Kh3 Re3+ 65. Kh2 Rg3 66. Rb5 Kh6 67. Rb6+ g6 68. Ra6 Kg7 $11 69. Rb6 Rg4 70. Kh3 Rg3+ 71. Kh2 g5 72. hxg5 Rxg5 73. Ra6 Rg6 74. Ra5 Kh6 1/2-1/2

[Event "European Amateur Chess-ch 2022"]
[Site "Zagreb"]
[Date "2022.08.21"]
[Round "9.9"]
[White "Grgantov, Marin"]
[Black "Tomic, Stjepan"]
[Result "0-1"]
[ECO "B12"]
[WhiteElo "2048"]
[BlackElo "1990"]
[Annotator "TA"]
[PlyCount "68"]
[EventDate "2022.08.14"]
[EventCountry "CRO"]
[SourceTitle "playchess.com"]
[Source "ChessBase"]
[SourceQuality "1"]
[TimeControl "40/5400+30:1800+30"]

{[%evp 13,68,15,25,21,29,0,0,6,11,-31,-25,-43,0,-77,-26,-28,-29,-45,-40,-45,-27,-32,-38,-22,-33,-52,-20,-49,-30,-50,-42,-65,-53,-51,-37,-52,0,-14,-18,-16,0,0,0,-11,-10,0,0,-17,-21,-27,-27,-218,0,0,0,-634,-583]} 1. e4 c6 2. d4 d5 3. e5 Bf5 4. h4 h6 5. g4 Be4 6. f3 Bh7 7. e6 Qd6 8. exf7+ $1 {B12: Caro-Kann: Advance Variation.} Kxf7 9. Bd3 e5 10. Bxh7 {The position is equal.} Rxh7 11. Ne2 Nd7 12. Nbc3 Ngf6 (12... Re8 $5 {[%cal Rg8f6]}) 13. Qd3 (13. h5 $11 {keeps the balance.}) 13... Re8 (13... c5 $17 14. Rg1 exd4) 14. Be3 $11 exd4 15. Bxd4 Ne5 16. Bxe5 Qxe5 17. O-O-O Qe3+ 18. Qxe3 Rxe3 {[#]} 19. Rhf1 $146 ({Predecessor:} 19. Rdf1 Bb4 20. a3 Ba5 21. Kd2 Re7 22. Nd4 Rh8 23. b4 Bc7 24. Nf5 Re6 25. Re1 {0-1 (63) Jovanovic,Z (2533)-Zelcic,R (2500) Valpovo 2017}) 19... Bb4 20. Kd2 Re7 21. a3 Bc5 {[%cal Bb4c5,Bc5e3,Be3f4,Bf4c7][%mdl 32]} 22. b4 Be3+ 23. Kd3 Rh8 24. Ng3 {Threatens to win with Nf5.} Rhe8 25. Nf5 Re6 26. Rde1 {[%cal Re1e3]} Bf4 27. Rxe6 Rxe6 28. Ne2 Bc7 29. Ned4 Re8 30. c4 dxc4+ 31. Kxc4 Nd5 {[%cal Oe8e3] Hoping for ...Re3!} 32. h5 $2 {[#]} (32. Rf2 $11 {and White has nothing to worry.}) 32... Ne3+ $2 (32... Re3 $1 $19 {[%csl Gd5][%cal Re3c3][%mdl 512]} 33. Nb5 {[#]} Be5 $1 34. Nxe3 Nxe3+ 35. Kc5 Nxf1 36. Nxa7 Bc7) 33. Nxe3 Rxe3 34. Nc2 $2 {[%mdl 8192]} (34. b5 $11) 34... b5+ {Weighted Error Value: White=0.54/Black=0.23 (precise)} 0-1